bitfinex/quotes_SOLUSD_20220116
["timestamp","ask_amount","ask_price","bid_price","bid_amount"]
[1642366116676,10.1287,148.17,148.11,41.28927715]
[1642366116876,10.1287,148.17,148.11,39.3762094]
[1642366117776,10.1287,148.17,148.11,41.28927715]
[1642366119281,10.1287,148.17,148.11,39.3762094]
[1642366121005,43.49925409,148.18,148.11,39.3762094]
[1642366121403,43.49925409,148.18,148.11,41.28927715]
[1642366124308,10.1274,148.19,148.11,41.28927715]
[1642366124907,1.2357252,148.2,148.11,49.49227715]
[1642366125109,10.1261,148.21,148.11,49.49227715]
[1642366125311,42.16008429,148.23,148.11,55.49227715]
[1642366125608,42.16008429,148.23,148.12,24.0624]
[1642366125811,42.16008429,148.23,148.13,9.74]
[1642366126007,42.16008429,148.23,148.14,10.13888265]
[1642366126210,42.16008429,148.23,148.14,35.13358265]
[1642366126510,42.16008429,148.23,148.15,1.91306775]
[1642366126807,10.1234,148.25,148.15,1.91306775]
[1642366127007,10.1234,148.25,148.15,2.16306775]
[1642366127809,44.72006586,148.24,148.15,2.16306775]
[1642366128210,44.72006586,148.24,148.15,8.16306775]
[1642366128411,44.72006586,148.24,148.15,2.16306775]
[1642366129610,44.72006586,148.24,148.15,8.16306775]
[1642366129813,44.72006586,148.24,148.15,2.16306775]
[1642366130511,44.72006586,148.24,148.15,0.25]
[1642366130915,44.72006586,148.24,148.14,43.2966504]
[1642366135313,54.84416586,148.24,148.14,43.0466504]
[1642366135515,56.54494174,148.24,148.14,32.90776775]
[1642366135915,56.54494174,148.24,148.14,30.9947]
[1642366136117,54.84416586,148.24,148.14,30.9947]
[1642366136519,54.84416586,148.24,148.15,45.39387248]
[1642366136816,54.84416586,148.24,148.15,51.64387248]
[1642366138618,54.84416586,148.24,148.15,45.64387248]
[1642366139022,54.84416586,148.24,148.15,45.39387248]
[1642366139318,54.84416586,148.24,148.15,0.25]
[1642366139518,54.84416586,148.24,148.14,24.9947]
[1642366139720,54.84416586,148.24,148.14,31.2447]
[1642366140121,54.84416586,148.24,148.14,68.47708668]
[1642366144928,44.72006586,148.24,148.14,68.47708668]
[1642366145329,44.72006586,148.24,148.15,9.74]
[1642366145734,44.72006586,148.24,148.15,15.99]
[1642366146134,10.1228,148.26,148.15,15.99]
[1642366146334,11.93134406,148.28,148.16,91.5676]
[1642366146533,11.93134406,148.28,148.16,97.5676]
[1642366146733,11.93134406,148.28,148.16,97.8176]
[1642366147257,42.93853431,148.27,148.17,12.03270537]
[1642366147456,42.93853431,148.27,148.17,12.28270537]
[1642366147756,42.93853431,148.27,148.18,24.078]
[1642366147958,42.93853431,148.27,148.18,24.328]
[1642366148159,42.93853431,148.27,148.18,30.328]
[1642366149257,21.66854406,148.32,148.18,40.4473]
[1642366149459,21.66854406,148.32,148.18,63.9418]
[1642366149657,21.66854406,148.32,148.19,67.56]
[1642366149857,21.66854406,148.32,148.19,73.81]
[1642366150057,21.66854406,148.32,148.2,23.6713]
[1642366150259,44.77940042,148.31,148.21,37.23238668]
[1642366150461,54.89860042,148.31,148.21,37.48238668]
[1642366154464,54.89860042,148.31,148.22,23.9935]
[1642366154863,54.89860042,148.31,148.22,24.2435]
[1642366155862,54.89860042,148.31,148.22,30.2435]
[1642366156362,54.89860042,148.31,148.22,24.2435]
[1642366160367,54.89860042,148.31,148.22,23.9935]
[1642366161268,56.5993763,148.31,148.22,23.9935]
[1642366161467,56.5993763,148.31,148.18,25.40756775]
[1642366161668,56.5993763,148.31,148.18,80.48666762]
[1642366161869,56.5993763,148.31,148.18,78.57359987]
[1642366162371,56.5993763,148.31,148.19,24.335]
[1642366162870,56.5993763,148.31,148.19,24.585]
[1642366163572,56.5993763,148.31,148.19,30.585]
[1642366164971,63.64527604,148.31,148.19,30.585]
[1642366166274,61.94450016,148.31,148.19,30.585]
[1642366169876,54.89860042,148.31,148.19,30.585]
[1642366172377,54.89860042,148.31,148.19,32.49806775]
[1642366172775,54.89860042,148.31,148.19,42.61666775]
[1642366172978,44.77940042,148.31,148.22,9.92599218]
[1642366173204,44.77940042,148.31,148.23,67.56]
[1642366173378,1.81004406,148.33,148.23,67.81]
[1642366173578,1.81004406,148.33,148.24,22.6452]
[1642366173978,1.81004406,148.35,148.24,96.4552]
[1642366174279,1.81004406,148.35,148.24,106.1952]
[1642366174479,48.48959054,148.34,148.25,39.33909987]
[1642366174880,48.48959054,148.34,148.25,39.58909987]
[1642366175079,1.81004406,148.35,148.26,67.56]
[1642366175481,1.81004406,148.35,148.26,67.81]
[1642366176081,1.81004406,148.35,148.27,24.2523]
[1642366176282,1.81004406,148.35,148.28,9.92599218]
[1642366176481,43.00854422,148.36,148.28,10.17599218]
[1642366177883,53.12434422,148.36,148.28,0.25]
[1642366178085,53.12434422,148.36,148.27,24.5023]
[1642366178885,53.12434422,148.36,148.28,42.25671037]
[1642366179187,43.00854422,148.36,148.28,48.90571037]
[1642366179383,43.00854422,148.36,148.28,49.15571037]
[1642366180385,41.19850016,148.36,148.28,49.15571037]
[1642366181012,41.19850016,148.36,148.28,42.50671037]
[1642366181912,41.19850016,148.36,148.28,0.25]
[1642366182313,41.19850016,148.36,148.27,24.5023]
[1642366182914,41.19850016,148.36,148.28,37.61655784]
[1642366183314,41.19850016,148.36,148.28,37.86655784]
[1642366184815,41.19850016,148.36,148.28,43.86655784]
[1642366186216,41.19850016,148.36,148.29,67.56]
[1642366186419,41.19850016,148.36,148.29,73.81]
[1642366186618,41.19850016,148.36,148.29,6.25]
[1642366188019,41.19850016,148.36,148.29,0.25]
[1642366188323,41.19850016,148.36,148.28,43.86655784]
[1642366188521,41.19850016,148.36,148.28,111.42655784]
[1642366189019,41.19850016,148.36,148.28,43.86655784]
[1642366189220,41.19850016,148.36,148.28,43.61655784]
[1642366190922,41.19850016,148.36,148.28,111.42655784]
[1642366191123,41.19850016,148.36,148.28,43.86655784]
[1642366192123,41.19850016,148.36,148.28,111.42655784]
[1642366194423,41.19850016,148.36,148.28,43.86655784]
[1642366195025,41.19850016,148.36,148.29,67.56]
[1642366195424,41.19850016,148.36,148.29,0.25]
[1642366196628,41.19850016,148.36,148.28,43.86655784]
[1642366197535,41.19850016,148.36,148.29,67.56]
[1642366197934,41.19850016,148.36,148.29,73.81]
[1642366200069,41.19850016,148.36,148.29,73.56]
[1642366200669,41.19850016,148.36,148.29,6.0]
[1642366200869,41.19850016,148.36,148.27,39.9923]
[1642366201769,41.19850016,148.36,148.28,37.81844815]
[1642366202170,41.19850016,148.36,148.28,43.81844815]
[1642366202369,41.19850016,148.36,148.28,6.0]
[1642366202773,41.19850016,148.36,148.27,39.9923]
[1642366203377,41.19850016,148.36,148.28,38.77832457]
[1642366203674,43.00854422,148.36,148.28,38.77832457]
[1642366203971,43.00854422,148.36,148.28,45.02832457]
[1642366204572,43.00854422,148.36,148.28,6.25]
[1642366204975,53.12434422,148.36,148.28,0.25]
[1642366205174,53.12434422,148.36,148.28,6.25]
[1642366205778,53.12434422,148.36,148.28,0.25]
[1642366206072,51.31430016,148.36,148.28,6.0]
[1642366206476,51.31430016,148.36,148.28,6.25]
[1642366206673,51.31430016,148.36,148.28,0.25]
[1642366206872,53.12434422,148.36,148.28,0.25]
[1642366207673,53.12434422,148.36,148.27,81.95049232]
[1642366208273,53.12434422,148.36,148.27,81.70049232]
[1642366209675,53.12434422,148.36,148.27,81.95049232]
[1642366210580,43.00854422,148.36,148.27,81.95049232]
[1642366210776,1.81004406,148.36,148.28,67.56]
[1642366211176,1.81004406,148.36,148.28,73.81]
[1642366211577,1.81004406,148.36,148.29,23.0505]
[1642366211777,50.00460282,148.36,148.3,7.55689973]
[1642366211978,48.19455876,148.36,148.3,7.55689973]
[1642366212179,48.19455876,148.36,148.3,7.80689973]
[1642366213380,1.81004406,148.38,148.3,7.80689973]
[1642366213580,1.81004406,148.38,148.3,14.80189973]
[1642366214279,1.81004406,148.38,148.3,20.80189973]
[1642366214580,38.23929003,148.37,148.3,20.80189973]
[1642366214781,1.81004406,148.38,148.3,20.80189973]
[1642366214979,1.81004406,148.38,148.31,24.4706]
[1642366215379,1.81004406,148.38,148.31,24.7206]
[1642366215781,45.39805372,148.37,148.31,24.7206]
[1642366215980,45.39805372,148.37,148.31,0.25]
[1642366216382,45.39805372,148.37,148.3,13.80689973]
[1642366216584,45.39805372,148.37,148.3,36.92369973]
[1642366223789,45.39805372,148.37,148.3,46.66369973]
[1642366225390,45.39805372,148.37,148.3,40.66369973]
[1642366225791,45.39805372,148.37,148.3,40.41369973]
[1642366225992,45.39805372,148.37,148.3,46.41369973]
[1642366226892,47.20809778,148.37,148.3,46.41369973]
[1642366228392,47.20809778,148.37,148.3,46.66369973]
[1642366233521,47.20809778,148.37,148.3,46.41369973]
[1642366234722,47.20809778,148.37,148.3,113.97369973]
[1642366234924,47.20809778,148.37,148.3,114.22369973]
[1642366235225,47.20809778,148.37,148.3,46.41369973]
[1642366236723,1.81004406,148.36,148.3,46.66369973]
[1642366244436,1.81004406,148.35,148.3,46.66369973]
[1642366245238,1.81004406,148.35,148.3,46.41369973]
[1642366246740,1.81004406,148.35,148.3,46.66369973]
[1642366248143,1.81004406,148.35,148.3,39.1068]
[1642366248442,1.81004406,148.34,148.3,39.1068]
[1642366249141,1.81004406,148.35,148.31,40.7660296]
[1642366249339,1.81004406,148.35,148.31,47.0160296]
[1642366249942,1.81004406,148.36,148.31,47.0160296]
[1642366250949,1.81004406,148.35,148.31,47.0160296]
[1642366252947,1.81004406,148.35,148.31,6.25]
[1642366253146,1.81004406,148.35,148.31,0.25]
[1642366253346,1.81004406,148.35,148.3,39.1068]
[1642366259454,1.81004406,148.36,148.3,39.1068]
[1642366260252,1.81004406,148.36,148.3,38.8568]
[1642366261953,1.81004406,148.36,148.3,39.1068]
[1642366262554,1.81004406,148.35,148.3,39.1068]
[1642366262953,1.81004406,148.35,148.3,15.99]
[1642366263252,48.81383944,148.35,148.3,15.99]
[1642366270367,50.6238835,148.35,148.3,15.74]
[1642366270566,50.6238835,148.35,148.3,6.0]
[1642366271066,50.6238835,148.35,148.26,15.74]
[1642366271469,50.6238835,148.35,148.27,48.35578818]
[1642366271868,50.6238835,148.35,148.27,54.60578818]
[1642366272267,1.81004406,148.35,148.27,54.60578818]
[1642366272470,1.81004406,148.34,148.27,54.60578818]
[1642366272968,1.81004406,148.34,148.28,24.1329]
[1642366273369,1.81004406,148.35,148.28,30.3829]
[1642366273570,1.81004406,148.35,148.28,27.841906]
[1642366274595,1.81004406,148.35,148.28,27.591906]
[1642366275397,1.81004406,148.35,148.28,6.0]
[1642366275597,38.97426371,148.36,148.28,6.0]
[1642366275598,1.81004406,148.34,148.28,6.0]
[1642366275803,1.81004406,148.34,148.27,54.35578818]
[1642366275999,1.81004406,148.34,148.28,0.25]
[1642366276198,1.81004406,148.34,148.27,54.60578818]
[1642366277901,1.81004406,148.35,148.28,24.9062]
[1642366278302,1.81004406,148.35,148.28,30.9062]
[1642366278904,1.81004406,148.35,148.28,6.0]
[1642366279400,1.81004406,148.35,148.25,7.91306775]
[1642366279603,1.81004406,148.34,148.24,17.65306775]
[1642366279802,1.81004406,148.34,148.25,36.09087954]
[1642366280301,1.81004406,148.34,148.25,42.09087954]
[1642366280501,11.92714406,148.34,148.25,42.34087954]
[1642366280702,1.81004406,148.33,148.25,42.09087954]
[1642366282913,1.81004406,148.33,148.25,42.34087954]
[1642366285710,11.92774406,148.33,148.25,42.34087954]
[1642366286110,11.92774406,148.33,148.25,42.09087954]
[1642366287311,11.92774406,148.33,148.25,42.34087954]
[1642366291728,79.48774406,148.33,148.25,6.0]
[1642366291929,79.48774406,148.33,148.23,30.5252]
[1642366292129,1.81004406,148.32,148.23,30.5252]
[1642366292329,10.1199,148.3,148.23,30.5252]
[1642366292728,32.96064424,148.29,148.23,70.60666359]
[1642366294747,32.96064424,148.29,148.23,70.85666359]
[1642366295648,32.96064424,148.29,148.23,70.60666359]
[1642366295847,32.96064424,148.29,148.23,46.08146359]
[1642366296450,32.96064424,148.29,148.23,46.33146359]
[1642366296649,32.96064424,148.29,148.23,46.08146359]
[1642366297850,32.96064424,148.29,148.23,6.0]
[1642366298251,32.96064424,148.29,148.21,6.0]
[1642366298452,41.75964424,148.29,148.19,40.7004]
[1642366298851,51.88014424,148.29,148.2,37.9537112]
[1642366299251,119.44014424,148.29,148.2,43.9537112]
[1642366300853,119.44014424,148.29,148.2,6.0]
[1642366301054,119.44014424,148.29,148.19,40.7004]
[1642366301454,119.44014424,148.29,148.19,30.9604]
[1642366302060,121.2501883,148.29,148.19,30.9604]
[1642366303460,121.2501883,148.29,148.19,31.2104]
[1642366304160,119.44014424,148.29,148.19,31.2104]
[1642366306461,119.44014424,148.29,148.19,30.9604]
[1642366308366,119.44014424,148.29,148.19,31.2104]
[1642366309766,121.2501883,148.29,148.19,31.2104]
[1642366310567,119.44014424,148.29,148.19,31.2104]
[1642366311169,119.44014424,148.29,148.19,30.9604]
[1642366311569,120.76562283,148.29,148.19,30.9604]
[1642366311769,7.04657854,148.28,148.19,30.9604]
[1642366311998,10.1224,148.26,148.19,30.9604]
[1642366314173,10.1224,148.26,148.19,31.2104]
[1642366314775,10.1224,148.26,148.19,30.9604]
[1642366315178,10.1224,148.26,148.19,24.9604]
[1642366315377,77.6824,148.26,148.16,9.74]
[1642366315577,83.5814,148.26,148.13,33.5967]
[1642366315776,95.02217588,148.26,148.13,9.74]
[1642366316179,101.79673931,148.26,148.13,9.74]
[1642366316579,10.1275,148.22,148.09,25.65246775]
[1642366316777,10.1275,148.22,148.09,35.39246775]
[1642366316778,18.7295,148.22,148.09,35.39246775]
[1642366317379,38.97426371,148.21,148.1,38.47991005]
[1642366317578,10.1283,148.18,148.1,38.47991005]
[1642366318381,10.1283,148.18,148.1,44.47991005]
[1642366320110,77.6883,148.18,148.1,44.72991005]
[1642366320310,77.6883,148.18,148.1,6.0]
[1642366320709,77.6883,148.18,148.09,29.7394]
[1642366321407,77.6883,148.18,148.09,70.27874755]
[1642366321606,77.6883,148.18,148.09,76.27874755]
[1642366322009,77.6883,148.18,148.09,70.52874755]
[1642366324509,77.6883,148.18,148.09,70.27874755]
[1642366324708,77.6883,148.18,148.09,46.53934755]
[1642366325714,77.6883,148.18,148.09,52.53934755]
[1642366326513,77.6883,148.18,148.09,46.53934755]
[1642366327214,7.05173124,148.17,148.09,46.53934755]
[1642366327414,10.13,148.15,148.09,46.53934755]
[1642366330014,10.13,148.15,148.08,23.8899]
[1642366330216,10.13,148.15,148.08,29.8899]
[1642366331215,10.13,148.15,148.08,70.50862426]
[1642366332216,10.13,148.15,148.08,29.8899]
[1642366340324,10.13,148.15,148.09,24.9769]
[1642366349036,10.13,148.15,148.1,13.7432192]
[1642366349833,10.13,148.15,148.09,24.9769]
[1642366368777,10.13,148.15,148.09,30.9769]
[1642366370182,10.13,148.15,148.09,24.9769]
[1642366370381,10.13,148.15,148.06,1.91306775]
[1642366370582,7.05308612,148.14,148.06,1.91306775]
[1642366370983,10.134,148.12,148.06,1.91306775]
[1642366371283,38.97426371,148.11,148.06,1.91306775]
[1642366371482,38.97426371,148.11,148.04,24.0836]
[1642366371683,38.97426371,148.11,148.04,30.0836]
[1642366372385,10.1338,148.1,148.04,30.0836]
[1642366376589,10.1338,148.1,148.04,75.59447961]
[1642366378692,10.1338,148.1,148.04,30.0836]
[1642366384522,38.97426371,148.11,148.04,30.0836]
[1642366384723,38.97426371,148.11,148.04,30.3336]
[1642366388135,38.97426371,148.11,148.04,30.0836]
[1642366388330,38.97426371,148.11,148.04,30.3336]
[1642366389332,49.10706371,148.11,148.04,30.0836]
[1642366391833,49.10706371,148.11,148.04,30.3336]
[1642366404145,10.1328,148.11,148.04,30.3336]
[1642366404346,10.1316,148.13,148.04,30.3336]
[1642366405248,40.51590469,148.12,148.04,30.3336]
[1642366406951,50.64810469,148.12,148.04,30.3336]
[1642366410757,50.64810469,148.12,148.04,32.24666775]
[1642366412057,50.64810469,148.12,148.04,30.3336]
[1642366416680,50.64810469,148.12,148.04,30.0836]
[1642366416880,50.64810469,148.12,148.04,6.0]
[1642366417081,9.74,148.11,148.04,6.0]
[1642366417281,10.135,148.09,148.03,7.91306775]
[1642366417581,10.135,148.09,148.04,6.0]
[1642366417881,10.135,148.09,148.03,6.0]
[1642366418081,10.135,148.09,148.02,32.05926775]
[1642366418783,10.135,148.09,148.02,32.30926775]
[1642366418984,10.135,148.09,148.02,30.1462]
[1642366420886,10.135,148.09,148.02,30.3962]
[1642366421284,10.135,148.09,148.02,30.1462]
[1642366423085,10.135,148.09,148.02,30.3962]
[1642366423286,10.135,148.09,148.02,30.1462]
[1642366425688,10.135,148.09,148.02,30.3962]
[1642366426888,10.135,148.09,148.02,30.1462]
[1642366431899,10.135,148.09,148.02,29.981946]
[1642366446408,11.94274406,148.11,148.02,30.231946]
[1642366446815,11.94274406,148.11,148.02,39.971946]
[1642366447407,11.94274406,148.11,148.02,39.721946]
[1642366447607,11.94274406,148.11,148.02,39.971946]
[1642366447810,11.94274406,148.11,148.02,39.721946]
[1642366450918,1.81004406,148.1,148.02,39.721946]
[1642366451117,11.94384406,148.1,148.02,39.721946]
[1642366451718,1.81004406,148.1,148.02,39.971946]
[1642366452321,1.81004406,148.1,148.02,39.721946]
[1642366452519,1.81004406,148.11,148.02,39.721946]
[1642366453418,1.81004406,148.11,148.02,39.971946]
[1642366453419,11.94274406,148.11,148.02,39.971946]
[1642366454423,1.81004406,148.1,148.02,39.971946]
[1642366454651,10.1339,148.09,148.02,39.971946]
[1642366455852,11.94394406,148.09,148.02,39.971946]
[1642366457554,10.1339,148.09,148.02,39.971946]
[1642366458857,11.94394406,148.09,148.02,39.971946]
[1642366460156,11.94394406,148.09,148.02,39.721946]
[1642366460356,10.1339,148.09,148.02,39.721946]
[1642366460758,10.1339,148.09,148.02,39.971946]
[1642366461256,11.94394406,148.09,148.02,39.971946]
[1642366463058,2.95371827,148.1,148.02,39.971946]
[1642366466764,1.81004406,148.08,148.02,39.971946]
[1642366467565,1.81004406,148.09,148.02,39.971946]
[1642366468671,11.94304406,148.09,148.02,39.971946]
[1642366469467,11.94304406,148.09,148.02,39.721946]
[1642366471870,11.94304406,148.09,148.02,39.971946]
[1642366472174,31.41900326,148.07,148.02,39.971946]
[1642366472879,31.41900326,148.07,148.02,39.721946]
[1642366473074,31.41900326,148.07,148.02,39.971946]
[1642366475675,11.94344406,148.08,148.02,39.971946]
[1642366476877,50.50323775,148.08,148.02,39.971946]
[1642366479181,50.50323775,148.08,148.02,29.981946]
[1642366479481,50.50323775,148.08,148.02,6.0]
[1642366479885,1.81004406,148.07,148.02,6.0]
[1642366480283,10.1351,148.06,148.02,6.0]
[1642366480484,10.1351,148.06,148.01,41.85852672]
[1642366481111,11.94514406,148.06,148.01,41.85852672]
[1642366482508,10.1351,148.06,148.01,41.85852672]
[1642366484307,10.1351,148.06,148.01,42.10852672]
[1642366484709,1.81004406,148.07,148.01,42.10852672]
[1642366485509,50.50333775,148.08,148.01,42.10852672]
[1642366486209,50.50333775,148.08,148.02,23.7339]
[1642366486412,50.50333775,148.08,148.02,23.9839]
[1642366486611,50.50333775,148.08,148.02,29.9839]
[1642366488012,48.69329369,148.08,148.02,29.9839]
[1642366491315,50.50333775,148.08,148.02,29.9839]
[1642366492317,11.94354406,148.08,148.02,29.9839]
[1642366493519,57.50173809,148.08,148.02,29.9839]
[1642366494719,57.50173809,148.08,148.02,29.7339]
[1642366496024,57.50173809,148.08,148.02,29.9839]
[1642366497625,57.50173809,148.08,148.02,29.7339]
[1642366498227,1.81004406,148.07,148.02,29.7339]
[1642366498626,11.94434406,148.07,148.02,29.7339]
[1642366499229,11.94434406,148.07,148.02,29.9839]
[1642366499427,11.94434406,148.07,148.02,29.7339]
[1642366499927,1.81004406,148.07,148.02,29.9839]
[1642366500840,45.66707943,148.08,148.02,29.7339]
[1642366501232,45.66707943,148.08,148.02,29.9839]
[1642366501435,1.81004406,148.07,148.02,29.9839]
[1642366502332,45.66707943,148.08,148.02,29.9839]
[1642366502532,55.80057943,148.08,148.02,29.9839]
[1642366503535,1.81004406,148.07,148.02,29.9839]
[1642366503934,1.81004406,148.07,148.02,29.7339]
[1642366504536,55.80057943,148.08,148.02,29.7339]
[1642366505335,1.81004406,148.07,148.02,29.7339]
[1642366506539,11.94424406,148.07,148.02,29.7339]
[1642366508340,11.94424406,148.07,148.02,29.9839]
[1642366508841,1.81004406,148.07,148.02,29.9839]
[1642366509341,39.01888006,148.08,148.02,29.9839]
[1642366509950,39.01888006,148.08,148.02,29.7339]
[1642366510148,39.01888006,148.08,148.02,29.9839]
[1642366510849,1.81004406,148.08,148.02,29.9839]
[1642366511449,1.81004406,148.07,148.02,29.9839]
[1642366511849,46.88564948,148.07,148.02,29.9839]
[1642366513651,1.81004406,148.07,148.02,29.9839]
[1642366515172,1.81004406,148.07,148.02,39.7239]
[1642366522486,1.81004406,148.07,148.02,107.2839]
[1642366523688,1.81004406,148.08,148.02,107.2839]
[1642366524492,39.24324021,148.09,148.02,107.2839]
[1642366525591,1.81004406,148.09,148.02,107.2839]
[1642366541929,1.81004406,148.09,148.02,39.7239]
[1642366542127,1.81004406,148.09,148.02,39.4739]
[1642366542128,11.94284406,148.09,148.02,39.4739]
[1642366542928,11.94284406,148.09,148.02,39.7239]
[1642366543128,1.81004406,148.08,148.02,39.7239]
[1642366545329,11.94334406,148.08,148.02,39.7239]
[1642366546331,11.94334406,148.08,148.02,39.4739]
[1642366548032,1.81004406,148.07,148.02,39.4739]
[1642366548431,11.94404406,148.07,148.02,39.4739]
[1642366549836,11.94404406,148.07,148.02,39.7239]
[1642366550739,11.94404406,148.07,148.02,39.4739]
[1642366550940,11.94404406,148.07,148.02,15.74]
[1642366551740,11.94404406,148.07,148.02,53.07603145]
[1642366551939,11.94404406,148.07,148.02,43.33603145]
[1642366557551,1.81004406,148.06,148.02,43.33603145]
[1642366557749,11.94464406,148.06,148.02,43.33603145]
[1642366558356,10.1346,148.06,148.02,43.33603145]
[1642366559578,31.63606077,148.05,148.02,6.0]
[1642366559781,6.06439994,148.04,148.02,6.0]
[1642366560081,6.06439994,148.04,148.01,6.0]
[1642366560383,6.06439994,148.04,147.99,15.74]
[1642366560581,6.06439994,148.04,148.0,45.59729363]
[1642366560979,6.06439994,148.04,148.0,51.59729363]
[1642366561180,1.81004406,148.06,148.0,51.59729363]
[1642366561382,1.81004406,148.05,148.0,51.84729363]
[1642366561582,1.81004406,148.05,148.0,51.59729363]
[1642366562181,1.81004406,148.06,148.0,51.59729363]
[1642366562582,1.81004406,148.06,148.01,67.56]
[1642366562781,1.81004406,148.06,148.01,77.3]
[1642366562981,1.81004406,148.06,148.01,83.55]
[1642366563182,1.81004406,148.06,148.01,83.3]
[1642366563481,1.81004406,148.06,148.01,83.55]
[1642366563883,44.71733151,148.08,148.01,83.55]
[1642366564082,54.85033151,148.08,148.01,83.3]
[1642366565283,1.81004406,148.07,148.01,83.3]
[1642366565484,1.81004406,148.07,148.01,83.55]
[1642366566083,11.94304406,148.08,148.01,83.55]
[1642366566283,11.94304406,148.08,148.02,23.9039]
[1642366566688,11.94304406,148.08,148.02,30.1539]
[1642366567493,11.94304406,148.08,148.02,29.9039]
[1642366567893,11.94304406,148.08,148.02,6.0]
[1642366568294,11.94304406,148.08,148.0,55.12017267]
[1642366568694,1.81004406,148.07,148.0,51.59729363]
[1642366568892,11.94434406,148.07,148.0,51.59729363]
[1642366569094,11.94434406,148.07,148.0,61.33729363]
[1642366569293,1.81004406,148.06,148.0,61.33729363]
[1642366570998,1.81004406,148.06,148.0,61.58729363]
[1642366571603,11.94434406,148.07,148.0,61.33729363]
[1642366573104,1.81004406,148.06,148.0,61.33729363]
[1642366573303,1.81004406,148.06,148.01,23.5737]
[1642366573904,11.94434406,148.07,148.01,29.8237]
[1642366577807,11.94434406,148.07,148.01,29.5737]
[1642366578110,11.94434406,148.07,148.01,29.8237]
[1642366579239,1.81004406,148.07,148.01,29.8237]
[1642366580543,1.81004406,148.08,148.01,29.8237]
[1642366580740,11.94334406,148.08,148.01,29.8237]
[1642366581341,1.81004406,148.07,148.01,29.8237]
[1642366586247,11.94334406,148.08,148.01,29.8237]
[1642366587250,1.81004406,148.07,148.01,29.8237]
[1642366588852,1.81004406,148.07,148.01,97.3837]
[1642366591484,1.81004406,148.07,148.01,97.1337]
[1642366592889,1.81004406,148.07,148.01,97.3837]
[1642366595991,11.94334406,148.08,148.01,97.3837]
[1642366600805,1.81004406,148.08,148.01,97.3837]
[1642366601003,1.81004406,148.08,148.01,98.64133237]
[1642366601401,1.81004406,148.08,148.02,77.3]
[1642366601800,1.45087528,148.09,148.02,83.55]
[1642366601801,3.26091934,148.09,148.02,83.55]
[1642366602601,3.26091934,148.09,148.03,90.4762]
[1642366603001,3.26091934,148.09,148.03,96.7262]
[1642366604402,3.26091934,148.09,148.04,9.74]
[1642366604604,3.26091934,148.09,148.05,67.56]
[1642366604903,1.45087528,148.09,148.05,77.47779842]
[1642366607307,1.45087528,148.09,148.05,77.22779842]
[1642366607505,1.45087528,148.09,148.05,77.47779842]
[1642366609109,1.45087528,148.09,148.05,77.22779842]
[1642366609310,1.45087528,148.09,148.05,77.47779842]
[1642366613317,1.45087528,148.09,148.05,3.91779842]
[1642366613517,1.45087528,148.09,148.05,9.91779842]
[1642366613718,1.45087528,148.09,148.05,3.91779842]
[1642366613916,1.45087528,148.09,148.05,27.45659842]
[1642366614718,29.32290258,148.09,148.05,27.45659842]
[1642366614918,1.45087528,148.09,148.05,27.45659842]
[1642366615121,1.45087528,148.09,148.05,33.45659842]
[1642366622149,1.45087528,148.09,148.05,29.7888]
[1642366622848,1.45087528,148.09,148.05,6.25]
[1642366623250,1.45087528,148.09,148.05,0.25]
[1642366623449,1.45087528,148.09,148.05,6.0]
[1642366623648,1.45087528,148.09,148.02,22.6211]
[1642366623849,1.45087528,148.09,148.02,28.6211]
[1642366624050,11.58347528,148.09,148.02,28.6211]
[1642366624251,11.58347528,148.09,148.02,68.08050651]
[1642366624753,11.58347528,148.09,148.02,62.33050651]
[1642366625550,13.39351934,148.09,148.02,62.33050651]
[1642366625951,13.39351934,148.09,148.02,68.33050651]
[1642366627455,13.39351934,148.09,148.02,68.08050651]
[1642366627652,13.39351934,148.09,148.02,28.6211]
[1642366628755,1.81004406,148.08,148.02,28.6211]
[1642366628956,11.94334406,148.08,148.02,28.6211]
[1642366629855,11.94334406,148.08,148.02,28.8711]
[1642366634264,10.1333,148.08,148.02,28.8711]
[1642366635898,10.1333,148.08,148.02,6.0]
[1642366636101,10.1333,148.08,148.0,3.52694477]
[1642366636599,10.1333,148.08,147.97,1.91306775]
[1642366636999,10.1333,148.08,147.98,39.99827928]
[1642366637403,10.1333,148.08,147.98,45.99827928]
[1642366637600,1.81004406,148.05,147.98,45.99827928]